fUSD/lending_fUSD_20240416
["ID","MTS","AMOUNT","RATE_DAILY","PERIOD"]
[322778850,1713277888369,-500.0,0.00016998,2]
[322778851,1713277888385,-500.0,0.00016998,2]
[322778852,1713277888395,-500.0,0.00016998,2]
[322778853,1713277888406,-500.0,0.00016998,2]
[322778854,1713277888416,-271.11953449,0.00016998,2]
[322778855,1713277888426,-500.0,0.00016998,2]
[322778856,1713277888437,-500.0,0.00016998,2]
[322778857,1713277888447,-579.12,0.00016998,2]
[322778858,1713277888457,-238.31020346,0.00016998,2]
[322778859,1713277888467,-820.47,0.00016998,2]
[322778860,1713277888478,-820.47,0.00016998,2]
[322778861,1713277888488,-820.47,0.00016998,2]
[322778862,1713277888499,-820.47,0.00016998,2]
[322778863,1713277888510,-820.47,0.00016998,2]
[322778864,1713277888520,-820.47,0.00016998,2]
[322778865,1713277888529,-820.53411996,0.00016998,2]
[322778866,1713277888539,-240.72596196,0.00016998,2]
[322778867,1713277888549,-500.0,0.00016998,2]
[322778868,1713277888559,-500.0,0.00016998,2]
[322778869,1713277888569,-500.0,0.00016998,2]
[322778870,1713277888579,-635.90909024,0.00016998,2]
[322778871,1713277888589,-500.0,0.00016998,2]
[322778872,1713277888599,-628.45,0.00016998,2]
[322778873,1713277888609,-500.0,0.00016998,2]
[322778874,1713277888619,-628.45,0.00016998,2]
[322778875,1713277888630,-500.0,0.00016998,2]
[322778876,1713277888641,-628.45,0.00016998,2]
[322778877,1713277888651,-500.0,0.00016998,2]
[322778878,1713277888661,-628.45,0.00016998,2]
[322778879,1713277888672,-500.0,0.00016998,2]
[322778880,1713277888682,-628.45,0.00016998,2]
[322778881,1713277888692,-500.0,0.00016998,2]
[322778882,1713277888703,-628.46237567,0.00016998,2]
[322778883,1713277888714,-157.67,0.00016998,2]
[322778884,1713277888724,-975.27,0.00016998,2]
[322778885,1713277888734,-975.27,0.00016998,2]
[322778886,1713277888744,-975.27,0.00016998,2]
[322778887,1713277888757,-975.27,0.00016998,2]
[322778888,1713277888766,-975.27,0.00016998,2]
[322778889,1713277888776,-975.27,0.00016998,2]
[322778890,1713277888787,-975.41,0.00016998,2]
[322778891,1713277888800,-863.58,0.00016998,2]
[322778892,1713277888814,-863.58,0.00016998,2]
[322778893,1713277888827,-863.58,0.00016998,2]
[322778894,1713277888837,-863.58,0.00016998,2]
[322778895,1713277888847,-863.58,0.00016998,2]
[322778896,1713277888858,-863.58,0.00016998,2]
[322778897,1713277888869,-863.64913523,0.00016998,2]
[322778898,1713277888879,-500.0,0.00016998,2]
[322778899,1713277888890,-500.0,0.00016998,2]
[322778900,1713277888901,-214.13634327,0.00016998,2]
[322778901,1713277888912,-755.96,0.00016998,2]
[322778902,1713277888922,-755.96,0.00016998,2]
[322778903,1713277888932,-755.96,0.00016998,2]
[322778904,1713277888943,-755.96,0.00016998,2]
[322778905,1713277888953,-755.96,0.00016998,2]
[322778906,1713277888964,-755.96,0.00016998,2]
[322778907,1713277888974,-756.16638945,0.00016998,2]
[322778908,1713277888985,-756.14,0.00016998,2]
[322778909,1713277888995,-756.14,0.00016998,2]
[322778910,1713277889007,-756.14,0.00016998,2]
[322778911,1713277889018,-756.14,0.00016998,2]
[322778912,1713277889027,-756.24999999,0.00016998,2]
[322778913,1713277889037,-532.89,0.00016998,2]
[322778914,1713277889047,-532.89,0.00016998,2]
[322778915,1713277889057,-532.89,0.00016998,2]
[322778916,1713277889067,-532.89,0.00016998,2]
[322778917,1713277889078,-532.89,0.00016998,2]
[322778918,1713277889089,-532.89,0.00016998,2]
[322778919,1713277889098,-532.97,0.00016998,2]
[322778920,1713277889108,-593.58,0.00016998,2]
[322778921,1713277889119,-500.0,0.00016998,2]
[322778922,1713277889130,-593.58,0.00016998,2]
[322778923,1713277889139,-214.49129547,0.00016998,2]
[322778924,1713277889150,-593.58,0.00016998,2]
[322778925,1713277889160,-593.58,0.00016998,2]
[322778926,1713277889171,-593.59456041,0.00016998,2]
[322778927,1713277889181,-771.19,0.00016998,2]
[322778928,1713277889191,-771.19,0.00016998,2]
[322778929,1713277889202,-771.19,0.00016998,2]
[322778930,1713277889212,-771.19,0.00016998,2]
[322778931,1713277889222,-771.19,0.00016998,2]
[322778932,1713277889233,-771.19830157,0.00016998,2]
[322778933,1713277889244,-576.88,0.00016998,2]
[322778934,1713277889256,-576.88,0.00016998,2]
[322778935,1713277889267,-576.88,0.00016998,2]
[322778936,1713277889277,-576.88,0.00016998,2]
[322778937,1713277889288,-577.05765431,0.00016998,2]
[322778938,1713277889298,-1395.79,0.00016998,2]
[322778939,1713277889308,-1395.79,0.00016998,2]
[322778940,1713277889319,-1395.79,0.00016998,2]
[322778941,1713277889329,-1395.79,0.00016998,2]
[322778942,1713277889338,-1395.9378923,0.00016998,2]
[322778943,1713277889349,-520.48,0.00016998,2]
[322778944,1713277889359,-520.48,0.00016998,2]
[322778945,1713277889370,-520.48,0.00016998,2]
[322778946,1713277889380,-520.48,0.00016998,2]
[322778947,1713277889391,-520.71385633,0.00016998,2]
[322778948,1713277889402,-523.3,0.00016998,2]
[322778949,1713277889655,-523.3,0.00016998,2]
[322778950,1713277889665,-523.3,0.00016998,2]
[322778951,1713277889675,-523.3,0.00016998,2]
[322778952,1713277889685,-523.41532747,0.00016998,2]
[322778953,1713277889695,-612.65,0.00016998,2]
[322778954,1713277889705,-612.65,0.00016998,2]
[322778955,1713277889715,-612.65,0.00016998,2]
[322778956,1713277889724,-612.65,0.00016998,2]
[322778957,1713277889734,-612.70829107,0.00016998,2]
[322778958,1713277889743,-500.0,0.00016998,2]
[322778959,1713277889755,-500.0,0.00016998,2]
[322778960,1713277889765,-246.76611343,0.00016998,2]
[322778961,1713277889774,-500.0,0.00016998,2]
[322778962,1713277889784,-500.0,0.00016998,2]
[322778963,1713277889794,-500.0,0.00016998,2]
[322778964,1713277889804,-274.69,0.00016998,2]
[322778965,1713277889814,-935.03,0.00016998,2]
[322778966,1713277889826,-935.03,0.00016998,2]
[322778967,1713277889836,-935.03,0.00016998,2]
[322778968,1713277889845,-935.03,0.00016998,2]
[322778969,1713277889857,-935.20617982,0.00016998,2]
[322778970,1713277889867,-500.0,0.00016998,2]
[322778971,1713277889877,-500.0,0.00016998,2]
[322778972,1713277889887,-500.0,0.00016998,2]
[322778973,1713277889897,-500.0,0.00016998,2]
[322778974,1713277889908,-500.0,0.00016998,2]
[322778975,1713277889918,-344.09327941,0.00016998,2]
[322778976,1713277889929,-1149.28,0.00016998,2]
[322778977,1713277889939,-1149.28,0.00016998,2]
[322778978,1713277889948,-1149.28,0.00016998,2]
[322778979,1713277889958,-1149.28,0.00016998,2]
[322778980,1713277889968,-581.8,0.00016998,2]
[322778981,1713277889977,-1149.28,0.00016998,2]
[322778982,1713277889988,-581.8,0.00016998,2]
[322778983,1713277889997,-1149.30195402,0.00016998,2]
[322778984,1713277890014,-581.8,0.00016998,2]
[322778985,1713277890024,-581.8,0.00016998,2]
[322778986,1713277890034,-581.82866027,0.00016998,2]
[322778987,1713277890044,-500.0,0.00016998,2]
[322778988,1713277890053,-500.0,0.00016998,2]
[322778989,1713277890063,-500.0,0.00016998,2]
[322778990,1713277890073,-500.0,0.00016998,2]
[322778991,1713277890084,-412.81893817,0.00016998,2]
[322778992,1713277890094,-907.11,0.00016998,2]
[322778993,1713277890103,-907.11,0.00016998,2]
[322778994,1713277890113,-907.11,0.00016998,2]
[322778995,1713277890124,-907.11,0.00016998,2]
[322778996,1713277890134,-907.21736949,0.00016998,2]
[322778997,1713277890144,-905.54,0.00016998,2]
[322778998,1713277890154,-905.54,0.00016998,2]
[322778999,1713277890164,-905.54,0.00016998,2]
[322779000,1713277890174,-905.54,0.00016998,2]
[322779001,1713277890184,-905.6244514,0.00016998,2]
[322779002,1713277890194,-2751.08,0.00016998,2]
[322779003,1713277890204,-2751.08,0.00016998,2]
[322779004,1713277890213,-2751.08,0.00016998,2]
[322779005,1713277890223,-2751.08,0.00016998,2]
[322779006,1713277890233,-2751.08,0.00016998,2]
[322779007,1713277890243,-2751.16,0.00016998,2]
[322779008,1713277890255,-584.14,0.00016998,2]
[322779009,1713277890264,-551.63,0.00016998,2]
[322779010,1713277890274,-584.14,0.00016998,2]
[322779011,1713277890284,-551.63,0.00016998,2]
[322779012,1713277890296,-584.14,0.00016998,2]
[322779013,1713277890307,-551.63,0.00016998,2]
[322779014,1713277890317,-584.14,0.00016998,2]
[322779015,1713277890327,-551.63,0.00016998,2]
[322779016,1713277890337,-584.29510397,0.00016998,2]
[322779017,1713277890347,-551.80099499,0.00016998,2]
[322779018,1713277890356,-7821.35,0.00016998,2]
[322779019,1713277890366,-7821.35,0.00016998,2]
[322779020,1713277890376,-7821.35,0.00016998,2]
[322779021,1713277890386,-7821.35,0.00016998,2]
[322779022,1713277890396,-7821.51718575,0.00016998,2]
[322779023,1713277890406,-500.0,0.00016998,2]
[322779024,1713277890416,-500.0,0.00016998,2]
[322779025,1713277890426,-500.0,0.00016998,2]
[322779026,1713277890436,-500.0,0.00016998,2]
[322779027,1713277890446,-366.55,0.00016998,2]
[322779028,1713277890456,-3387.99,0.00016998,2]
[322779029,1713277890466,-3387.99,0.00016998,2]
[322779030,1713277890476,-3387.99,0.00016998,2]
[322779031,1713277890485,-3387.99,0.00016998,2]
[322779032,1713277890495,-3388.15052335,0.00016998,2]
[322779033,1713277890510,-6104.45,0.00016998,2]
[322779034,1713277890519,-6104.45,0.00016998,2]
[322779035,1713277890529,-6104.45,0.00016998,2]
[322779036,1713277890539,-6104.45,0.00016998,2]
[322779037,1713277890548,-6104.5645806,0.00016998,2]
[322779038,1713277890557,-2421.41,0.00016998,2]
[322779039,1713277890566,-2421.41,0.00016998,2]
[322779040,1713277890576,-2421.41,0.00016998,2]
[322779041,1713277890586,-2421.41,0.00016998,2]
[322779042,1713277890597,-2421.62202809,0.00016998,2]
[322779043,1713277890607,-1137.25,0.00016998,2]
[322779044,1713277890617,-1137.25,0.00016998,2]
[322779045,1713277890626,-1137.25,0.00016998,2]
[322779046,1713277890637,-1137.25,0.00016998,2]
[322779047,1713277890646,-1137.33215981,0.00016998,2]
[322779048,1713277890656,-1003.13,0.00016998,2]
[322779049,1713277890667,-1003.13,0.00016998,2]
[322779050,1713277890677,-1003.13,0.00016998,2]
[322779051,1713277890687,-1003.13,0.00016998,2]
[322779052,1713277890696,-1003.19052149,0.00016998,2]
[322779053,1713277890705,-1911.93,0.00016998,2]
[322779054,1713277890715,-1911.93,0.00016998,2]
[322779055,1713277890726,-1911.93,0.00016998,2]
[322779056,1713277890736,-1911.93,0.00016998,2]
[322779057,1713277890746,-591.13,0.00016998,2]
[322779058,1713277890761,-1912.12640135,0.00016998,2]
[322779059,1713277890771,-591.13,0.00016998,2]
[322779060,1713277890781,-591.13,0.00016998,2]
[322779061,1713277890791,-591.13,0.00016998,2]
[322779062,1713277890800,-591.13,0.00016998,2]
[322779063,1713277890814,-591.32670985,0.00016998,2]
[322779064,1713277890824,-1221.55,0.00016998,2]
[322779065,1713277890834,-1221.55,0.00016998,2]
[322779066,1713277890844,-1221.55,0.00016998,2]
[322779067,1713277890855,-1221.55,0.00016998,2]
[322779068,1713277890865,-1221.77452581,0.00016998,2]
[322779069,1713277890874,-1928.8,0.00016998,2]
[322779070,1713277890884,-1928.8,0.00016998,2]
[322779071,1713277890895,-1928.8,0.00016998,2]
[322779072,1713277890906,-1928.8,0.00016998,2]
[322779073,1713277890919,-1928.85202882,0.00016998,2]
[322779074,1713277890929,-694.63,0.00016998,2]
[322779075,1713277890939,-694.63,0.00016998,2]
[322779076,1713277890949,-694.63,0.00016998,2]
[322779077,1713277890960,-694.63,0.00016998,2]
[322779078,1713277890970,-694.65996441,0.00016998,2]
[322779079,1713277890981,-1170.48,0.00016998,2]
[322779080,1713277890992,-1170.48,0.00016998,2]
[322779081,1713277891007,-1170.48,0.00016998,2]
[322779082,1713277891017,-1170.48,0.00016998,2]
[322779083,1713277891028,-1170.48,0.00016998,2]
[322779084,1713277891038,-1170.55604209,0.00016998,2]
[322779085,1713277891048,-1813.78,0.00016998,2]
[322779086,1713277891058,-1813.78,0.00016998,2]
[322779087,1713277891069,-1813.78,0.00016998,2]
[322779088,1713277891079,-1813.78,0.00016998,2]
[322779089,1713277891089,-1813.99962482,0.00016998,2]
[322779090,1713277891100,-655.88,0.00016998,2]
[322779091,1713277891110,-655.88,0.00016998,2]
[322779092,1713277891119,-655.88,0.00016998,2]
[322779093,1713277891130,-655.88,0.00016998,2]
[322779094,1713277891140,-655.93,0.00016998,2]
[322779095,1713277891150,-5977.96,0.00016998,2]
[322779096,1713277891160,-5977.96,0.00016998,2]
[322779097,1713277891170,-5977.96,0.00016998,2]
[322779098,1713277891180,-5977.96,0.00016998,2]
[322779099,1713277891190,-5978.18665292,0.00016998,2]
[322779100,1713277891200,-13114.25,0.00016998,2]
[322779101,1713277891209,-13114.25,0.00016998,2]
[322779102,1713277891219,-13114.25,0.00016998,2]
[322779103,1713277891229,-736.96,0.00016998,2]
[322779104,1713277891240,-13114.25,0.00016998,2]
[322779105,1713277891250,-736.96,0.00016998,2]
[322779106,1713277891264,-736.96,0.00016998,2]
[322779107,1713277891275,-13114.26820969,0.00016998,2]
[322779108,1713277891285,-736.96,0.00016998,2]
[322779109,1713277891297,-737.15268038,0.00016998,2]
[322779110,1713277891306,-5916.1,0.00016998,2]
[322779111,1713277891316,-5916.1,0.00016998,2]
[322779112,1713277891326,-5916.1,0.00016998,2]
[322779113,1713277891336,-5916.1,0.00016998,2]
[322779114,1713277891346,-5916.18815038,0.00016998,2]
[322779115,1713277891357,-29593.17,0.00016998,2]
[322779116,1713277891367,-29593.17,0.00016998,2]
[322779117,1713277891378,-29593.17,0.00016998,2]
[322779118,1713277891388,-29593.17,0.00016998,2]
[322779119,1713277891398,-2237.49416474,0.00016998,2]
[322779120,1713277891671,-478.6711612,0.00016994,2]
[322779121,1713277891683,-176.8588388,0.00016994,2]
[322779122,1713277891693,-2969.4411612,0.00016998,2]
[322779123,1713277892031,-158.86,0.00016021,2]
[322779124,1713277892040,-158.86,0.00016029,2]
[322779125,1713277892050,-158.86,0.00016037,2]
[322779126,1713277892059,-158.86,0.00016045,2]
[322779127,1713277892068,-500.0,0.00016993,2]
[322779128,1713277892080,-655.53,0.00016994,2]
[322779129,1713277892111,-655.53,0.00016994,2]
[322779130,1713277892123,-245.74324248,0.00016994,2]
[322779131,1713277892233,-158.86,0.00016053,2]
[322779132,1713277892243,-409.78675752,0.00016994,2]
[322779133,1713277892255,-655.53,0.00016994,2]
[322779134,1713277892264,-554.56410615,0.00016995,2]
[322779135,1713277892276,-100.96589385,0.00016995,2]
[322779136,1713277892285,-469.96941151,0.00016995,2]
[322779138,1713278151274,493.01,0.00014155,2]
[322779140,1713278213591,179.44574028,0.00014155,2]
[322779142,1713278515309,1579.04,0.00015151,2]
[322779143,1713278602741,323.65817163,0.00015151,2]
[322779144,1713278618677,249.422518,0.00015151,2]
[322779145,1713278640463,498.98,0.00013221,2]
[322779146,1713278640919,498.98,0.00015485,2]
[322779150,1713278750403,1610.04,0.00015135,2]
[322779152,1713278764592,229.41,0.00015141,2]
[322779153,1713278764904,190.45,0.00015141,2]
[322779154,1713278785295,163.18,0.00015254,2]
[322779157,1713278853995,250.0,0.00015152,2]
[322779158,1713278878495,800.0,0.00015154,2]
[322779159,1713278888227,150.0,0.00015154,2]
[322779160,1713278890731,234.45,0.00015166,2]
[322779161,1713278934667,3211.13,0.00015182,2]
[322779168,1713279032175,-155.0,0.00015604,2]
[322779169,1713279032186,-414.5696,0.00015605,2]
[322779170,1713279032195,-349.49,0.00015689,2]
[322779171,1713279032205,-349.49,0.00015693,2]
[322779172,1713279032214,-349.49,0.00015697,2]
[322779173,1713279032225,-89.36844999,0.00015701,2]
[322779174,1713279032286,-260.12155001,0.00015701,2]
[322779175,1713279032295,-349.49,0.00015705,2]
[322779176,1713279032305,-349.49,0.00015709,2]
[322779177,1713279032314,-40.89844999,0.00015713,2]
[322779178,1713279032345,-308.59155001,0.00015713,2]
[322779179,1713279032355,-349.49,0.00015717,2]
[322779180,1713279032372,-499.01,0.00015717,2]
[322779181,1713279032381,-349.49,0.00015722,2]
[322779182,1713279032392,-252.92,0.00015722,2]
[322779183,1713279032401,-349.49,0.00015726,2]
[322779184,1713279032410,-349.49,0.0001573,2]
[322779185,1713279032419,-349.49,0.00015734,2]
[322779186,1713279032429,-349.49,0.00015738,2]
[322779187,1713279032438,-150.0,0.00015741,2]
[322779188,1713279032447,-349.49,0.00015742,2]
[322779189,1713279032458,-349.49,0.00015746,2]
[322779190,1713279032467,-349.49,0.00015751,2]
[322779191,1713279032477,-349.49,0.00015755,2]
[322779192,1713279032487,-349.49,0.00015759,2]
[322779193,1713279032496,-349.49,0.00015763,2]
[322779194,1713279032506,-349.49,0.00015767,2]
[322779195,1713279032516,-200.0,0.00015867,2]
[322779196,1713279032526,-220.06,0.00015867,2]
[322779197,1713279032535,-186.78,0.00015977,2]
[322779198,1713279032545,-424.86,0.00015994,2]
[322779199,1713279032555,-163.18,0.00016049,2]
[322779200,1713279032565,-158.86,0.00016061,2]
[322779201,1713279032575,-158.86,0.00016069,2]
[322779202,1713279032584,-208.79611017,0.00016141,2]
[322779203,1713279032594,-693.37254,0.0001683,2]
[322779204,1713279032604,-114295.63500176,0.00016891,2]
[322779205,1713279032618,-1000.0,0.00016893,2]
[322779206,1713279032628,-1101.88619477,0.00016899,2]
[322779207,1713279032637,-1488.983173,0.000169,2]
[322779208,1713279032648,-4793.3633,0.000169,2]
[322779209,1713279032657,-207.33406528,0.000169,2]
[322779210,1713279032666,-3576.9319962,0.000169,2]
[322779211,1713279032676,-412.35,0.00016948,2]
[322779213,1713279032685,-316.62200515,0.00016981,4]
[322779216,1713279032706,-1843.29421168,0.00016981,4]
[322779217,1713279032718,-11012.5,0.00016981,4]
[322779218,1713279032748,-19243.05361028,0.00016981,4]
[322779219,1713279032757,-228.53,0.0001699,2]
[322779220,1713279032766,-228.53,0.0001699,2]
[322779221,1713279032777,-228.53,0.0001699,2]
[322779222,1713279032787,-228.53,0.0001699,2]
[322779223,1713279032796,-228.53,0.0001699,2]
[322779224,1713279032804,-228.53,0.0001699,2]
[322779225,1713279032814,-228.53,0.0001699,2]
[322779226,1713279032823,-228.53,0.0001699,2]
[322779227,1713279032832,-228.53,0.0001699,2]
[322779228,1713279032841,-228.53,0.0001699,2]
[322779229,1713279032850,-228.53,0.0001699,2]
[322779230,1713279032859,-228.53,0.0001699,2]
[322779231,1713279032868,-228.53,0.0001699,2]
[322779232,1713279032878,-228.53,0.0001699,2]
[322779233,1713279032887,-228.53,0.0001699,2]
[322779234,1713279032897,-228.53,0.0001699,2]
[322779235,1713279032906,-228.53,0.0001699,2]
[322779236,1713279032916,-228.53,0.0001699,2]
[322779237,1713279032926,-228.53,0.0001699,2]
[322779238,1713279032935,-228.53,0.0001699,2]
[322779239,1713279032945,-228.53,0.0001699,2]
[322779240,1713279032956,-375.93228978,0.00016991,2]
[322779241,1713279032966,-2107.91203848,0.00016992,2]
[322779270,1713279038159,-509.16789362,0.00016893,2]
[322779272,1713279038378,-436.63471156,0.00016893,2]
[322779273,1713279038390,-44.67089482,0.00016893,2]
[322779274,1713279038400,-228.53,0.0001699,2]
[322779275,1713279038410,-111.78125449,0.0001699,2]
[322779276,1713279038489,-116.74874551,0.0001699,2]
[322779277,1713279038499,-228.53,0.0001699,2]
[322779278,1713279038509,-228.53,0.0001699,2]
[322779279,1713279038518,-228.53,0.0001699,2]
[322779280,1713279038527,-228.53,0.0001699,2]
[322779281,1713279038536,-228.53,0.0001699,2]
[322779282,1713279038546,-228.53,0.0001699,2]
[322779283,1713279038555,-228.53,0.0001699,2]
[322779284,1713279038565,-124.17125449,0.0001699,2]
[322779285,1713279038576,-104.35874551,0.0001699,2]
[322779286,1713279038585,-228.53,0.0001699,2]
[322779287,1713279038594,-228.53,0.0001699,2]
[322779288,1713279038603,-228.53,0.0001699,2]
[322779289,1713279038612,-111.24756487,0.0001699,2]
[322779290,1713279038634,-117.28243513,0.0001699,2]
[322779291,1713279038643,-228.53,0.0001699,2]
[322779292,1713279038653,-228.53,0.0001699,2]
[322779293,1713279038663,-228.53,0.0001699,2]
[322779294,1713279038672,-228.53,0.0001699,2]
[322779295,1713279038681,-228.53,0.0001699,2]
[322779296,1713279038690,-681.01266051,0.00016992,2]
[322779297,1713279038701,-500.50239413,0.00016992,2]
[322779298,1713279038709,-500.0,0.00016992,2]
[322779299,1713279038718,-500.0,0.00016992,2]
[322779300,1713279038727,-500.0,0.00016992,2]
[322779301,1713279038736,-459.06107442,0.00016992,2]
[322779302,1713279038745,-511.3148166,0.00016992,2]
[322779303,1713279038755,-500.0,0.00016992,2]
[322779304,1713279038765,-363.72938534,0.00016992,2]
[322779305,1713279038774,-500.0,0.00016992,2]
[322779306,1713279038783,-162.47588063,0.00016992,2]
[322779307,1713279038792,-1275.29,0.00016992,2]
[322779308,1713279038801,-1275.29,0.00016992,2]
[322779309,1713279038811,-500.0,0.00016992,2]
[322779310,1713279038820,-358.93896261,0.00016992,2]
[322779311,1713279038829,-62.56942096,0.00016992,2]
[322779312,1713279038840,-428.98866675,0.00016992,2]
[322779313,1713279038849,-189.21905357,0.00016992,2]
[322779314,1713279038858,-424.70792239,0.00016992,2]
[322779315,1713279038873,-418.27589576,0.00016992,2]
[322779316,1713279038882,-647.65741,0.00016992,2]
[322779317,1713279038892,-500.0,0.00016992,2]
[322779318,1713279038901,-501.38022131,0.00016992,2]
[322779319,1713279038911,-21.64555022,0.00016992,2]
[322779320,1713279038922,-478.52686915,0.00016992,2]
[322779321,1713279038932,-155.34336927,0.00016993,2]
[322779322,1713279038941,-50.37166215,0.00016993,2]
[322779325,1713279040505,-415.33481303,0.00016993,2]
[322779326,1713279040520,-228.98216526,0.00016993,2]
[322779327,1713279040534,-214.46634435,0.00016993,2]
[322779328,1713279040545,-500.0,0.00016993,2]
[322779329,1713279040554,-500.0,0.00016993,2]
[322779330,1713279040564,-500.0,0.00016993,2]
[322779331,1713279040573,-163.93081746,0.00016993,2]
[322779332,1713279040583,-500.0,0.00016993,2]
[322779333,1713279040592,-502.58062116,0.00016993,2]
[322779334,1713279040602,-155.0,0.00016993,2]
[322779335,1713279040611,-155.0,0.00016993,2]
[322779336,1713279040626,-497.53681872,0.00016993,2]
[322779337,1713279040635,-500.0,0.00016993,2]
[322779338,1713279040647,-500.0,0.00016993,2]
[322779339,1713279040878,-240.84968862,0.00016993,2]
[322779340,1713279040887,-1430.04,0.00016993,2]
[322779341,1713279040897,-1275.29,0.00016993,2]
[322779342,1713279040906,-1275.29,0.00016993,2]
[322779343,1713279040915,-1275.29,0.00016993,2]
[322779344,1713279040925,-1275.29,0.00016993,2]
[322779345,1713279040934,-500.0,0.00016993,2]
[322779346,1713279040943,-500.0,0.00016993,2]
[322779347,1713279040952,-500.0,0.00016993,2]
[322779348,1713279040962,-150.0,0.00016993,2]
[322779349,1713279040971,-500.0,0.00016993,2]
[322779350,1713279040980,-500.0,0.00016993,2]
[322779351,1713279040990,-500.0,0.00016993,2]
[322779352,1713279040999,-540.39,0.00016993,2]
[322779353,1713279041008,-500.0,0.00016993,2]
[322779354,1713279041017,-500.0,0.00016993,2]
[322779355,1713279041026,-500.0,0.00016993,2]
[322779356,1713279041035,-1016.1,0.00016993,2]
[322779357,1713279041044,-312.1601651,0.00016994,2]
[322779358,1713279041053,-1275.29,0.00016994,2]
[322779359,1713279041062,-1275.29,0.00016994,2]
[322779360,1713279041071,-1275.29,0.00016994,2]
[322779361,1713279041080,-1275.29,0.00016994,2]
[322779362,1713279041089,-1275.29,0.00016994,2]
[322779363,1713279041098,-1275.29,0.00016994,2]
[322779364,1713279041107,-500.0,0.00016994,2]
[322779365,1713279041122,-563.67,0.00016994,2]
[322779366,1713279041131,-1275.29,0.00016995,2]
[322779367,1713279041140,-1275.29,0.00016995,2]
[322779368,1713279041149,-1275.29,0.00016995,2]
[322779369,1713279041158,-1275.29,0.00016995,2]
[322779370,1713279041173,-1275.29,0.00016995,2]
[322779371,1713279041186,-1275.29,0.00016995,2]
[322779372,1713279041196,-1275.29,0.00016996,2]
[322779373,1713279041205,-1275.29,0.00016996,2]
[322779374,1713279041215,-1275.29,0.00016996,2]
[322779375,1713279041224,-1275.29,0.00016996,2]
[322779376,1713279041233,-1275.29,0.00016996,2]
[322779377,1713279041242,-1275.33941941,0.00016996,2]
[322779378,1713279041251,-5838.21584113,0.00016997,2]
[322779379,1713279041261,-195.23070884,0.00016997,2]
[322779380,1713279041271,-197.86031143,0.00016998,2]
[322779381,1713279041280,-445.1962765,0.00016998,2]
[322779382,1713279041289,-266.51640759,0.00016998,2]
[322779383,1713279041298,-1430.04,0.00016999,2]
[322779384,1713279041307,-1430.04,0.00016999,2]
[322779385,1713279041317,-1430.04,0.00016999,2]
[322779386,1713279041326,-1430.04,0.00016999,2]
[322779387,1713279041335,-1430.04,0.00016999,2]
[322779388,1713279041344,-1430.04,0.00016999,2]
[322779389,1713279041354,-1430.04,0.00016999,2]
[322779390,1713279041363,-1430.04,0.00016999,2]
[322779391,1713279041374,-500.0,0.00016999,2]
[322779392,1713279041383,-500.0,0.00016999,2]
[322779393,1713279041392,-500.0,0.00016999,2]
[322779394,1713279041401,-500.0,0.00016999,2]
[322779395,1713279041410,-500.0,0.00016999,2]
[322779396,1713279041419,-500.0,0.00016999,2]
[322779397,1713279041428,-500.0,0.00016999,2]
[322779398,1713279041438,-500.0,0.00016999,2]